{"text_format":"3","workbook":"xlsx","n_sheets":4,"sheets":["Έναρξη","Έξοδα","Έσοδα","Σύνοψη κερδών-ζημιών"],"not_rendered":{"charts":1},"read":"whole","date_system":"1900"}

{"sheet":"Έναρξη","index":0,"n_rows":8,"n_cols":2,"rows_kept":8}
[null,"ΠΛΗΡΟΦΟΡΙΕΣ ΓΙΑ ΑΥΤΟ ΤΟ ΠΡΟΤΥΠΟ"]
[null,"Χρησιμοποιήστε αυτό το βιβλίο εργασίας προϋπολογισμού εκδήλωσης για να παρακολουθείτε τα έξοδα και τα έσοδα που προκύπτουν από μια εκδήλωση."]
[null,"Συμπληρώστε το όνομα της εκδήλωσης και εισαγάγετε τις λεπτομέρειες στους πίνακες των φύλλων εργασίας \"Έξοδα\" και \"Έσοδα\"."]
[null,"Τα συνολικά έξοδα και τα συνολικά έσοδα υπολογίζονται αυτόματα."]
[null,"Η σύνοψη και το γράφημακερδών/ζημιών ενημερώνονται αυτόματα στο φύλλο εργασίας \"Σύνοψη κερδών-ζημιών\"."]
[null,"Σημείωση: "]
[null,"Στη στήλη A σε κάθε φύλλο εργασίας παρέχονται πρόσθετες οδηγίες. Αυτό το κείμενο είναι κρυφό σκόπιμα. Για να καταργήσετε το κείμενο, επιλέξτε τη στήλη A και, στη συνέχεια, πατήστε το πλήκτρο DELETE. Για να εμφανίσετε το κείμενο, επιλέξτε τη στήλη A και, στη συνέχεια, αλλάξτε το χρώμα γραμματοσειράς."]
[null,"Για να μάθετε περισσότερα για τους πίνακες, πατήστε το πλήκτρο SHIFT και, στη συνέχεια, πατήστε το F10 μέσα σε έναν πίνακα, επιλέξτε \"ΠΙΝΑΚΑΣ\" και, στη συνέχεια, επιλέξτε \"ΕΝΑΛΛΑΚΤΙΚΟ ΚΕΙΜΕΝΟ\"."]

{"sheet":"Έξοδα","index":1,"n_rows":32,"n_cols":8,"rows_kept":32,"merged":[[0,1,0,5],[2,1,3,1]]}
["Εισαγάγετε εκτιμώμενα και πραγματικά έξοδα για κάθε κατηγορία στους αντίστοιχους πίνακες σε αυτό το φύλλο εργασίας και το όνομα της εκδήλωσης στο κελί D1, για να προσαρμόσετε τον τίτλο αυτού αλλά και άλλων φύλλων εργασίας. Ο υπότιτλος αυτού του φύλλου εργασίας βρίσκεται στο κελί H1. Σε διάφορα κελιά σε αυτή τη στήλη βρίσκονται χρήσιμες οδηγίες για τον τρόπο χρήσης αυτού του φύλλου εργασίας. Η επόμενη οδηγία βρίσκεται στο κελί A3.","Προϋπολογισμός εκδήλωσης για όνομα εκδήλωσης",{"$nulls":5},"ΕΞΟΔΑ"]
[]
["Η ετικέτα συνολικα εξοδα βρίσκεται στο κελί στα δεξιά, η ετικέτα εκτιμώμενα στο κελί G3 και η ετικέτα πραγματικά στο κελί H3.","ΣΥΝΟΛΙΚΑ ΕΞΟΔΑ",{"$nulls":4},"Εκτιμώμενα","Πραγματικά"]
["Τα συνολικά εκτιμώμενα έξοδα στο κελί G4 και τα συνολικά πραγματικά έξοδα στο κελί H4 υπολογίζονται αυτόματα. Η επόμενη οδηγία βρίσκεται στο κελί A6.",{"$nulls":5},{"$f":"SUM(C11,C19,C25,C32,G11,G19,G24)","v":{"v":882,"d":"882.00 €"}},{"$f":"SUM(D11,D19,D25,D32,H11,H19,H24)","v":{"v":333,"d":"333.00 €"}}]
[]
["Εισαγάγετε τα έξοδα χώρου στον πίνακα που ξεκινάει από το κελί στα δεξιά και τα έξοδα αναψυκτικών στον πίνακα που ξεκινά από το κελί F6. Η επόμενη οδηγία βρίσκεται στο κελί A13.","Χώρος","Εκτιμώμενα","Πραγματικά",null,"Αναψυκτικά","Εκτιμώμενα","Πραγματικά"]
[null,"Έξοδα αίθουσας και σάλας",{"v":500,"d":"500.00 €"},null,null,"Φαγητό"]
[null,"Προσωπικό χώρου",{"$nulls":3},"Ποτά",{"v":20,"d":"20.00 €"}]
[null,"Εξοπλισμός",{"$nulls":3},"Τραπεζομάντιλα",null,{"v":20,"d":"20.00 €"}]
[null,"Τραπέζια και καρέκλες",{"$nulls":3},"Προσωπικό και φιλοδωρήματα"]
[null,"Άθροισμα",{"$f":"SUBTOTAL(109,ΈξοδαΧώρου[Εκτιμώμενα])","v":{"v":500,"d":"500.00 €"}},{"$f":"SUBTOTAL(109,ΈξοδαΧώρου[Πραγματικά])","v":{"v":0,"d":"0.00 €"}},null,"Άθροισμα",{"$f":"SUBTOTAL(109,ΈξοδαΑναψυκτικών[Εκτιμώμενα])","v":{"v":20,"d":"20.00 €"}},{"$f":"SUBTOTAL(109,ΈξοδαΑναψυκτικών[Πραγματικά])","v":{"v":20,"d":"20.00 €"}}]
[]
["Εισαγάγετε τα έξοδα διακόσμησης στον πίνακα που ξεκινά από το κελί στα δεξιά και τα έξοδα προγράμματος στον πίνακα που ξεκινάει από το κελί F13. Η επόμενη οδηγία βρίσκεται στο κελί A21.","Διακοσμήσεις","Εκτιμώμενα","Πραγματικά",null,"Πρόγραμμα","Εκτιμώμενα","Πραγματικά"]
[null,"Λουλούδια",{"v":200,"d":"200.00 €"},{"v":300,"d":"300.00 €"},null,"Καλλιτέχνες"]
[null,"Κεριά",{"$nulls":3},"Ηχεία",{"v":30,"d":"30.00 €"}]
[null,"Φωτισμός",{"$nulls":3},"Ταξίδι"]
[null,"Μπαλόνια",{"$nulls":3},"Ξενοδοχείο"]
[null,"Χαρτικά",{"$nulls":3},"Άλλο"]
[null,"Άθροισμα",{"$f":"SUBTOTAL(109,ΈξοδαΔιακόσμησης[Εκτιμώμενα])","v":{"v":200,"d":"200.00 €"}},{"$f":"SUBTOTAL(109,ΈξοδαΔιακόσμησης[Πραγματικά])","v":{"v":300,"d":"300.00 €"}},null,"Άθροισμα",{"$f":"SUBTOTAL(109,ΈξοδαΠρογράμματος[Εκτιμώμενα])","v":{"v":30,"d":"30.00 €"}},{"$f":"SUBTOTAL(109,ΈξοδαΠρογράμματος[Πραγματικά])","v":{"v":0,"d":"0.00 €"}}]
[]
["Εισαγάγετε τα έξοδα δημοσιότητας στον πίνακα που ξεκινά από το κελί στα δεξιά και τα έξοδα βραβείων στον πίνακα που ξεκινάει από το κελί F21. Η επόμενη οδηγία βρίσκεται στο κελί A27.","Δημοσιότητα","Εκτιμώμενα","Πραγματικά",null,"Βραβεία","Εκτιμώμενα","Πραγματικά"]
[null,"Γραφικά",{"$nulls":3},"Κορδέλες/Πλακέτες/Τρόπαια"]
[null,"Φωτοαντιγραφή/Εκτύπωση",{"v":20,"d":"20.00 €"},null,null,"Δώρα",{"v":100,"d":"100.00 €"}]
[null,"Ταχυδρομικά τέλη",{"$nulls":3},"Άθροισμα",{"$f":"SUBTOTAL(109,ΈξοδαΒραβείων[Εκτιμώμενα])","v":{"v":100,"d":"100.00 €"}},{"$f":"SUBTOTAL(109,ΈξοδαΒραβείων[Πραγματικά])","v":{"v":0,"d":"0.00 €"}}]
[null,"Άθροισμα",{"$f":"SUBTOTAL(109,ΈξοδαΔημοσιότητας[Εκτιμώμενα])","v":{"v":20,"d":"20.00 €"}},{"$f":"SUBTOTAL(109,ΈξοδαΔημοσιότητας[Πραγματικά])","v":{"v":0,"d":"0.00 €"}}]
[]
["Εισαγάγετε τα διάφορα έξοδα στον πίνακα που ξεκινά από το από το κελί στα δεξιά.","Διάφορα","Εκτιμώμενα","Πραγματικά"]
[null,"Τηλέφωνο",null,{"v":13,"d":"13.00 €"}]
[null,"Μετακινήσεις",{"v":12,"d":"12.00 €"}]
[null,"Επιστολόχαρτα"]
[null,"Υπηρεσίες φαξ"]
[null,"Άθροισμα",{"$f":"SUBTOTAL(109,ΔιάφοραΈξοδα[Εκτιμώμενα])","v":{"v":12,"d":"12.00 €"}},{"$f":"SUBTOTAL(109,ΔιάφοραΈξοδα[Πραγματικά])","v":{"v":13,"d":"13.00 €"}}]

{"sheet":"Έσοδα","index":2,"n_rows":29,"n_cols":7,"rows_kept":29,"merged":[[0,1,0,4],[2,1,3,1]]}
["Εισαγάγετε τα εκτιμώμενα και τα πραγματικά έσοδα για κάθε κατηγορία στους αντίστοιχους πίνακες σε αυτό το φύλλο εργασίας. Ο τίτλος αυτού του φύλλου εργασίας ενημερώνεται αυτόματα στα κελιά στα δεξιά. Ο υπότιτλος βρίσκεται στο κελί G1. Σε διάφορα κελιά σε αυτή τη στήλη βρίσκονται χρήσιμες οδηγίες για τον τρόπο χρήσης αυτού του φύλλου εργασίας. Η επόμενη οδηγία βρίσκεται στο κελί A3.",{"$f":"Έξοδα!B1","v":"Προϋπολογισμός εκδήλωσης για όνομα εκδήλωσης"},{"$nulls":4},"ΕΣΟΔΑ"]
[]
["Η ετικέτα συνολικα εσοδα βρίσκεται στο κελί στα δεξιά, η ετικέτα εκτιμώμενα στο κελί F3 και η ετικέτα πραγματικά στο κελί G3.","ΣΥΝΟΛΙΚΑ ΕΣΟΔΑ",{"$nulls":3},"Εκτιμώμενα","Πραγματικά"]
["Τα συνολικά εκτιμώμενα έσοδα υπολογίζονται αυτόματα στο κελί F4 και τα συνολικά πραγματικά έσοδα στο G4.",{"$nulls":4},{"$f":"SUM(Προσελεύσεις[[#Totals],[Εκτιμώμενα έσοδα]],ΔιαφημίσειςΠρογράμματος[[#Totals],[Εκτιμώμενα έσοδα]],ΕκθέτεςΚαιΠρομηθευτές[[#Totals],[Εκτιμώμενα έσοδα]],ΠώλησηΕιδών[[#Totals],[Εκτιμώμενα έσοδα]])","v":{"v":1936,"d":"1,936.00 €"}},{"$f":"SUM(Προσελεύσεις[[#Totals],[Πραγματικά έσοδα]],ΔιαφημίσειςΠρογράμματος[[#Totals],[Πραγματικά έσοδα]],ΕκθέτεςΚαιΠρομηθευτές[[#Totals],[Πραγματικά έσοδα]],ΠώλησηΕιδών[[#Totals],[Πραγματικά έσοδα]])","v":{"v":1831,"d":"1,831.00 €"}}]
["Η ετικέτα προσελεύσεις βρίσκεται στο κελί στα δεξιά.","ΠΡΟΣΕΛΕΥΣΕΙΣ"]
["Εισαγάγετε τον εκτιμώμενο και τον πραγματικό αριθμό προσελεύσεων μαζί με τις τιμές των εισιτηρίων στον πίνακα που ξεκινά από το κελί στα δεξιά. Τα εκτιμώμενα και τα πραγματικά έσοδα από προσελεύσεις υπολογίζονται αυτόματα. Η επόμενη οδηγία βρίσκεται στο κελί A11.","Αρ. εκτιμώμενων","Αρ. πραγματικών","Τύπος","Τιμή","Εκτιμώμενα έσοδα","Πραγματικά έσοδα"]
[null,300,278,"Ενήλικες @",{"v":5,"d":"5.00 €"},{"$f":"B7*E7","v":{"v":1500,"d":"1,500.00 €"}},{"$f":"C7*E7","v":{"v":1390,"d":"1,390.00 €"}}]
[null,197,195,"Παιδιά @",{"v":2,"d":"2.00 €"},{"$f":"B8*E8","v":{"v":394,"d":"394.00 €"}},{"$f":"C8*E8","v":{"v":390,"d":"390.00 €"}}]
[null,42,51,"Άλλο @",{"v":1,"d":"1.00 €"},{"$f":"B9*E9","v":{"v":42,"d":"42.00 €"}},{"$f":"C9*E9","v":{"v":51,"d":"51.00 €"}}]
[null,"Άθροισμα",{"$nulls":3},{"$f":"SUBTOTAL(109,Προσελεύσεις[Εκτιμώμενα έσοδα])","v":{"v":1936,"d":"1,936.00 €"}},{"$f":"SUBTOTAL(109,Προσελεύσεις[Πραγματικά έσοδα])","v":{"v":1831,"d":"1,831.00 €"}}]
["Η ετικέτα διαφημίσεις στο πρόγραμμα βρίσκεται στο κελί στα δεξιά.","ΔΙΑΦΗΜΊΣΕΙΣ ΣΤΟ ΠΡΌΓΡΑΜΜΑ"]
["Εισαγάγετε τον εκτιμώμενο και τον πραγματικό αριθμό των διαφημίσεων στο πρόγραμμα και των τιμών των διαφημίσεων στον πίνακα που ξεκινά από το κελί στα δεξιά. Τα εκτιμώμενα και τα πραγματικά έσοδα από διαφημίσεις υπολογίζονται αυτόματα. Η επόμενη οδηγία βρίσκεται στο κελί A17.","Αρ. εκτιμώμενων","Αρ. πραγματικών","Τύπος","Τιμή","Εκτιμώμενα έσοδα","Πραγματικά έσοδα"]
[null,12,null,"Εξώφυλλα @",null,{"$f":"B13*E13","v":{"v":0,"d":"0.00 €"}},{"$f":"C13*E13","v":{"v":0,"d":"0.00 €"}}]
[null,null,158,"Μισές σελίδες @",null,{"$f":"B14*E14","v":{"v":0,"d":"0.00 €"}},{"$f":"C14*E14","v":{"v":0,"d":"0.00 €"}}]
[null,4,null,"Ένα τέταρτο σελίδας @",null,{"$f":"B15*E15","v":{"v":0,"d":"0.00 €"}},{"$f":"C15*E15","v":{"v":0,"d":"0.00 €"}}]
[null,"Άθροισμα",{"$nulls":3},{"$f":"SUBTOTAL(109,ΔιαφημίσειςΠρογράμματος[Εκτιμώμενα έσοδα])","v":{"v":0,"d":"0.00 €"}},{"$f":"SUBTOTAL(109,ΔιαφημίσειςΠρογράμματος[Πραγματικά έσοδα])","v":{"v":0,"d":"0.00 €"}}]
["Η ετικέτα εκθετες ή προμηθευτές βρίσκεται στο κελί στα δεξιά.","ΕΚΘΕΤΕΣ/ΠΡΟΜΗΘΕΥΤΈΣ"]
["Εισαγάγετε τον εκτιμώμενο και τον πραγματικό αριθμό εκθετών και προμηθευτών και τις τιμές των περιπτέρων στον πίνακα που ξεκινά από το κελί στα δεξιά. Τα εκτιμώμενα και τα πραγματικά έσοδα υπολογίζονται αυτόματα. Η επόμενη οδηγία βρίσκεται στο κελί A23.","Αρ. εκτιμώμενων","Αρ. πραγματικών","Τύπος","Τιμή","Εκτιμώμενα έσοδα","Πραγματικά έσοδα"]
[null,23,null,"Μεγάλα περίπτερα @",null,{"$f":"B19*E19","v":{"v":0,"d":"0.00 €"}},{"$f":"C19*E19","v":{"v":0,"d":"0.00 €"}}]
[null,354,null,"Μεσαίο περίπτερα @",null,{"$f":"B20*E20","v":{"v":0,"d":"0.00 €"}},{"$f":"C20*E20","v":{"v":0,"d":"0.00 €"}}]
[null,56,null,"Μικρά περίπτερα @",null,{"$f":"B21*E21","v":{"v":0,"d":"0.00 €"}},{"$f":"C21*E21","v":{"v":0,"d":"0.00 €"}}]
[null,"Άθροισμα",{"$nulls":3},{"$f":"SUBTOTAL(109,ΕκθέτεςΚαιΠρομηθευτές[Εκτιμώμενα έσοδα])","v":{"v":0,"d":"0.00 €"}},{"$f":"SUBTOTAL(109,ΕκθέτεςΚαιΠρομηθευτές[Πραγματικά έσοδα])","v":{"v":0,"d":"0.00 €"}}]
["Η ετικέτα πώληση ειδών βρίσκεται στο κελί στα δεξιά.","ΠΏΛΗΣΗ ΣΤΟΙΧΕΊΩΝ"]
["Εισαγάγετε τον εκτιμώμενο και τον πραγματικό αριθμό των πωληθέντων ειδών και των τιμών τους στον πίνακα που ξεκινά από το κελί στα δεξιά. Τα εκτιμώμενα και τα πραγματικά έσοδα υπολογίζονται αυτόματα.","Αρ. εκτιμώμενων","Αρ. πραγματικών","Τύπος","Τιμή","Εκτιμώμενα έσοδα","Πραγματικά έσοδα"]
[{"$nulls":3},"Είδη @",null,{"$f":"B25*E25","v":{"v":0,"d":"0.00 €"}},{"$f":"C25*E25","v":{"v":0,"d":"0.00 €"}}]
[null,123,null,"Είδη @",null,{"$f":"B26*E26","v":{"v":0,"d":"0.00 €"}},{"$f":"C26*E26","v":{"v":0,"d":"0.00 €"}}]
[{"$nulls":3},"Είδη @",null,{"$f":"B27*E27","v":{"v":0,"d":"0.00 €"}},{"$f":"C27*E27","v":{"v":0,"d":"0.00 €"}}]
[null,13,null,"Είδη @",null,{"$f":"B28*E28","v":{"v":0,"d":"0.00 €"}},{"$f":"C28*E28","v":{"v":0,"d":"0.00 €"}}]
[null,"Άθροισμα",{"$nulls":3},{"$f":"SUBTOTAL(109,ΠώλησηΕιδών[Εκτιμώμενα έσοδα])","v":{"v":0,"d":"0.00 €"}},{"$f":"SUBTOTAL(109,ΠώλησηΕιδών[Πραγματικά έσοδα])","v":{"v":0,"d":"0.00 €"}}]

{"sheet":"Σύνοψη κερδών-ζημιών","index":3,"n_rows":8,"n_cols":7,"rows_kept":8,"merged":[[0,1,0,4],[2,4,11,6]]}
["Η σύνοψη κερδών/ζημιών και το γράφημα που εμφανίζει τα συνολικά έσοδα και τα συνολικά έξοδα ενημερώνονται αυτόματα σε αυτό το φύλλο εργασίας. Ο τίτλος αυτού του φύλλου εργασίας ενημερώνεται αυτόματα στα κελιά στα δεξιά. Ο υπότιτλος βρίσκεται στα κελιά G1 και G2. Σε διάφορα κελιά σε αυτή τη στήλη βρίσκονται χρήσιμες οδηγίες για τον τρόπο χρήσης αυτού του φύλλου εργασίας. Η επόμενη οδηγία βρίσκεται στο κελί A3.",{"$f":"Έξοδα!B1","v":"Προϋπολογισμός εκδήλωσης για όνομα εκδήλωσης"},{"$nulls":4},"ΚΕΡΔΟΣ"]
[{"$nulls":6},"Σύνοψη ζημίας"]
["Το γράφημα ράβδων που συγκρίνει τα εκτιμώμενα έσοδα και έξοδα και τα πραγματικά έσοδα και έξοδα βρίσκεται στο κελί E3.",{"$nulls":3},"Το γράφημα ράβδων που εμφανίζει τη σύγκριση ανάμεσα στα εκτιμώμενα έσοδα και έξοδα και τα πραγματικά έσοδα και έξοδα βρίσκεται σε αυτό το κελί."]
["Ο πίνακας σύνοψης που ξεκινάει στο κελί στα δεξιά ενημερώνεται αυτόματα. Η επόμενη οδηγία βρίσκεται στο κελί A8."," Σύνολο","Εκτιμώμενα","Πραγματικά"]
[null,"Συνολικά έσοδα",{"$f":"Έσοδα!F4","v":{"v":1936,"d":"1,936.00 €"}},{"$f":"Έσοδα!G4","v":{"v":1831,"d":"1,831.00 €"}}]
[null,"Συνολικά έξοδα",{"$f":"Έξοδα!G4","v":{"v":882,"d":"882.00 €"}},{"$f":"Έξοδα!H4","v":{"v":333,"d":"333.00 €"}}]
[]
["Το συνολικό εκτιμώμενο κέρδος ή ζημιά υπολογίζονται αυτόματα στο κελί C8 και το συνολικό πραγματικό κέρδος ή ζημιά στο κελί D8.","Συνολικό κέρδος \n(ή ζημιά)",{"$f":"C5-C6","v":{"v":1054,"d":"1,054.00 €"}},{"$f":"D5-D6","v":{"v":1498,"d":"1,498.00 €"}}]